bitfinex/quotes_SOLUSD_20260118
["timestamp","ask_amount","ask_price","bid_price","bid_amount"]
[1768764228401,10.0786926,142.81,142.77,0.71011453]
[1768764229409,3.07638184,142.81,142.78,7.84263681]
[1768764232309,3.07638184,142.81,142.78,14.14263681]
[1768764232608,3.28265593,142.82,142.79,0.84341808]
[1768764236996,10.28435604,142.83,142.8,0.84880131]
[1768764238086,3.28265593,142.83,142.8,7.85260846]
[1768764238318,3.28265593,142.83,142.8,0.84984114]
[1768764240712,10.28369602,142.84,142.8,7.85263513]
[1768764241009,10.28369602,142.84,142.81,0.85288952]
[1768764244415,3.28265593,142.84,142.81,7.85517743]
[1768764245714,10.28351877,142.84,142.8,23.20033822]
[1768764245920,3.28265593,142.83,142.8,22.34259707]
[1768764246614,3.28265593,142.83,142.8,23.20033822]
[1768764249415,3.28265593,142.83,142.8,7.86033822]
[1768764249819,3.28265593,142.83,142.8,14.16033822]
[1768764250511,3.28265593,142.82,142.8,6.3]
[1768764255721,3.28265593,142.82,142.79,7.86557245]
[1768764256505,3.28265593,142.84,142.8,0.86664279]
[1768764257010,3.28265593,142.84,142.81,0.8674777]
[1768764257720,10.28320727,142.85,142.81,0.8674777]
[1768764258017,10.28320727,142.85,142.81,7.86960872]
[1768764259318,3.28265593,142.84,142.81,7.86960872]
[1768764263426,3.27419544,142.85,142.82,0.8730596]
[1768764263932,3.27419544,142.87,142.82,0.8730596]
[1768764264614,10.27405544,142.86,142.82,0.8730596]
[1768764266532,3.27419544,142.85,142.82,0.8730596]
[1768764267934,3.27419544,142.85,142.82,7.87484957]
[1768764270728,3.27419544,142.88,142.83,0.87820787]
[1768764271863,3.27419544,142.88,142.84,7.88044405]
[1768764274333,3.27419544,142.88,142.84,7.0008401]
[1768764275840,6.99900006,142.88,142.84,7.0008401]
[1768764276039,3.27419544,142.87,142.84,7.0008401]
[1768764276545,3.27419544,142.87,142.84,7.88314126]
[1768764281345,3.28625681,142.86,142.83,6.3]
[1768764282133,3.28625681,142.86,142.82,7.00181384]
[1768764282640,3.28625681,142.85,142.82,7.00181384]
[1768764283252,3.28625681,142.86,142.83,0.88733568]
[1768764286447,3.28625681,142.85,142.82,7.8909207]
[1768764286651,3.28625681,142.85,142.82,7.00181384]
[1768764287029,3.28625681,142.85,142.82,7.89149758]
[1768764287232,3.28625681,142.86,142.83,0.88968374]
[1768764288850,3.28625681,142.86,142.82,7.89263155]
[1768764289154,3.28625681,142.86,142.83,0.89081771]
[1768764289334,3.28625681,142.86,142.82,7.89263155]
[1768764290370,3.28625681,142.86,142.82,7.00181384]
[1768764290572,3.28625681,142.87,142.84,0.89137494]
[1768764290759,3.28625681,142.87,142.83,7.89250617]
[1768764294962,3.23956562,142.86,142.83,7.00113123]
[1768764295166,3.23956562,142.86,142.81,9.56432732]
[1768764295339,3.23956562,142.86,142.82,3.26432732]
[1768764295861,3.17956563,142.86,142.82,3.26432732]
[1768764296437,3.17956563,142.86,142.82,10.2658031]
[1768764298362,3.23956562,142.85,142.82,10.2658031]
[1768764300958,3.23956562,142.86,142.83,3.26432732]
[1768764301968,3.23956562,142.86,142.82,10.2658031]
[1768764304471,3.23956562,142.88,142.83,3.26432732]
[1768764305459,3.23956562,142.87,142.83,10.26545991]
[1768764307451,10.23905396,142.87,142.83,10.26545991]
[1768764308066,3.23956562,142.86,142.83,10.26545991]
[1768764309395,3.23956562,142.86,142.82,23.80455118]
[1768764309396,3.23956562,142.86,142.82,16.56598907]
[1768764309572,3.23956562,142.85,142.82,3.26432732]
[1768764311570,3.23956562,142.85,142.82,10.26608741]
[1768764312462,3.23956562,142.85,142.82,7.00176009]
[1768764316467,3.23956562,142.85,142.82,10.26608741]
[1768764318677,3.23956562,142.86,142.83,3.26432732]
[1768764320055,3.23956562,142.86,142.83,10.26551433]
[1768764320784,10.23913635,142.87,142.84,3.26432732]
[1768764321283,3.23956562,142.88,142.84,3.26432732]
[1768764322184,3.23956562,142.88,142.84,10.26484097]
[1768764323068,2.99620646,142.87,142.84,10.26484097]
[1768764323964,6.99855453,142.89,142.85,3.02704753]
[1768764324170,9.99476099,142.89,142.85,3.02704753]
[1768764327182,2.99620646,142.88,142.85,3.02704753]
[1768764327368,2.99620646,142.87,142.84,10.02756118]
[1768764327769,9.99464823,142.89,142.86,3.02704753]
[1768764331700,2.99620646,142.88,142.85,3.02704753]
[1768764341111,3.29561868,142.87,142.84,10.0498332]
[1768764343000,3.29561868,142.87,142.83,6.3]
[1768764343304,3.29561868,142.86,142.83,6.3]
[1768764343501,3.29561868,142.86,142.82,25.39095617]
[1768764346307,3.29561868,142.88,142.83,3.04928744]
[1768764346523,3.29561868,142.9,142.84,3.04928744]
[1768764348110,3.29561868,142.88,142.84,10.0499885]
[1768764349409,3.29561868,142.89,142.85,3.04928744]
[1768764350106,3.29561868,142.89,142.85,10.04939325]
[1768764350690,3.29561868,142.89,142.86,3.04928744]
[1768764352313,3.29561868,142.89,142.85,3.04928744]
[1768764355916,10.29403176,142.89,142.85,3.04928744]
[1768764357120,10.29403176,142.89,142.85,10.04963728]
[1768764361520,10.29403176,142.89,142.86,3.30456074]
[1768764362120,3.04964526,142.88,142.85,3.30456074]
[1768764362517,3.04964526,142.88,142.83,21.64]
[1768764362518,3.04964526,142.88,142.83,16.60584424]
[1768764363718,3.04964526,142.87,142.83,16.60584424]
[1768764369819,3.04964526,142.86,142.83,9.60456074]
[1768764371029,3.04964526,142.86,142.83,16.60586786]
[1768764372923,3.04964526,142.86,142.83,10.30586786]
[1768764375429,3.04964526,142.86,142.82,10.30638121]
[1768764378831,3.04964526,142.86,142.82,16.60638121]
[1768764387742,3.18082212,142.85,142.82,13.30182047]
[1768764390648,3.18082212,142.85,142.82,7.00182047]
[1768764391247,3.18082212,142.85,142.82,9.97365125]
[1768764398534,3.18082212,142.85,142.82,7.00182047]
[1768764404657,3.18082212,142.85,142.82,10.28853316]
[1768764407763,3.18082212,142.85,142.82,7.00182047]
[1768764418775,3.18082212,142.85,142.81,31.928834]
[1768764420778,10.18118064,142.85,142.81,31.928834]
[1768764422679,10.18118064,142.85,142.82,3.13842331]
[1768764423381,3.18082212,142.85,142.82,3.13842331]
[1768764426879,7.00039321,142.85,142.81,21.64]
[1768764427053,3.05047725,142.84,142.81,15.34]
[1768764427752,3.05047725,142.84,142.81,18.47842331]
[1768764427954,3.05047725,142.84,142.81,3.13842331]
[1768764429884,10.05134009,142.84,142.81,3.13842331]
[1768764438194,3.05047725,142.83,142.8,6.3]
[1768764439479,10.05205931,142.83,142.8,6.3]
[1768764442786,10.05205931,142.83,142.8,9.52770879]
[1768764443291,3.20799132,142.82,142.78,24.86770879]
[1768764446096,10.21011262,142.82,142.79,3.22770879]
[1768764447604,3.20799132,142.81,142.78,21.64]
[1768764448096,3.20799132,142.81,142.78,24.86770879]
[1768764452108,3.20799132,142.81,142.78,31.87147287]
[1768764453383,3.20799132,142.81,142.78,28.64376408]
[1768764453708,10.21011262,142.82,142.79,3.22770879]
[1768764457203,12.21011262,142.82,142.79,3.22770879]
[1768764457811,5.20799132,142.82,142.79,3.22770879]
[1768764458599,5.20799132,142.82,142.79,10.23092086]
[1768764459708,3.00964173,142.81,142.79,7.00321207]
[1768764460986,3.00964173,142.81,142.79,6.97321207]
[1768764465702,5.00964173,142.82,142.79,10.23642948]
[1768764467111,2.0,142.82,142.8,3.26321741]
[1768764467308,2.0,142.82,142.81,3.26321741]
[1768764467709,2.0,142.82,142.8,10.26588315]
[1768764468816,5.00964173,142.82,142.79,10.26650895]
[1768764469195,5.00964173,142.82,142.79,7.00329154]
[1768764469494,5.00964173,142.82,142.8,3.26321741]
[1768764473535,5.00964173,142.82,142.8,10.26601138]
[1768764474636,5.2695583,142.82,142.79,10.00688413]
[1768764495548,3.2695583,142.81,142.79,7.00329154]
[1768764495874,3.2695583,142.81,142.79,10.00688413]
[1768764496448,5.2695583,142.82,142.79,10.00688413]
[1768764502473,3.00471796,142.81,142.79,10.00688413]
[1768764505784,5.00471796,142.82,142.79,10.00688413]
[1768764509691,3.00471796,142.81,142.79,7.00329154]
[1768764510693,5.00471796,142.82,142.79,10.02924976]
[1768764519602,3.26790747,142.81,142.79,10.02924976]
[1768764519796,3.20790748,142.81,142.79,7.00329154]
[1768764520199,3.20790748,142.81,142.79,10.0613005]
[1768764521909,2.0,142.82,142.79,10.0613005]
[1768764522086,5.26790747,142.82,142.79,10.0613005]
[1768764534208,2.94694832,142.81,142.78,9.98654541]
[1768764548331,2.94694832,142.81,142.78,9.48654541]
[1768764556930,2.94694832,142.81,142.78,7.00359206]
[1768764567618,2.94694832,142.81,142.79,14.0046396]
[1768764576037,7.00151239,142.84,142.8,10.03768028]
[1768764576239,3.13864094,142.84,142.81,3.0350822]
[1768764576540,3.13864094,142.84,142.81,3.00508223]
[1768764576922,3.13864094,142.84,142.81,24.02158018]
[1768764577634,3.13864094,142.84,142.81,31.02353364]
[1768764584426,3.13864094,142.84,142.79,17.50764259]
[1768764584727,3.13864094,142.84,142.81,21.01649795]
[1768764585641,3.13864094,142.84,142.81,28.01853297]
[1768764585846,3.13864094,142.84,142.81,27.98853297]
[1768764586034,3.13864094,142.84,142.81,7.00203502]
[1768764589951,3.13864094,142.84,142.81,6.97203502]
[1768764596055,3.13864094,142.84,142.81,6.94203502]
[1768764600461,3.13482153,142.83,142.8,21.01649795]
[1768764600962,24.15131948,142.84,142.81,0.6852618]
[1768764601150,3.13482153,142.84,142.81,0.6852618]
[1768764602263,10.13572824,142.84,142.81,0.6852618]
[1768764602465,7.00090671,142.84,142.8,7.68875417]
[1768764602642,10.13572824,142.84,142.8,7.68875417]
[1768764602950,3.13482153,142.83,142.8,7.00270593]
[1768764603155,3.13482153,142.83,142.79,21.70479601]
[1768764603156,3.13482153,142.83,142.79,28.70792944]
[1768764603463,3.13482153,142.83,142.79,28.02110379]
[1768764603663,3.13482153,142.83,142.79,7.00313343]
[1768764604252,3.13482153,142.83,142.79,7.69072756]
[1768764614576,3.13482153,142.83,142.8,7.69743768]
[1768764619581,3.13482153,142.83,142.79,7.70140837]
[1768764620780,3.13482153,142.82,142.78,21.01797036]
[1768764620970,3.13482153,142.82,142.77,0.69938707]
[1768764621283,3.13482153,142.82,142.76,7.00455932]
[1768764621682,21.01797036,142.81,142.76,7.00455932]
[1768764621876,3.13482153,142.8,142.76,7.00455932]
[1768764622472,18.21241909,142.79,142.76,7.00455932]
[1768764622674,21.35097575,142.79,142.76,7.00455932]
[1768764622875,3.19855665,142.78,142.76,7.00455932]
[1768764623075,3.13855666,142.78,142.76,7.00455932]
[1768764624972,3.07855667,142.78,142.76,7.00455932]
[1768764625180,3.07855667,142.78,142.75,7.70447168]
[1768764625388,3.07855667,142.78,142.74,0.2]
[1768764625685,25.15622448,142.78,142.74,0.2]
[1768764626189,25.04621488,142.78,142.74,0.2]
[1768764626568,7.00380538,142.78,142.74,0.2]
[1768764626769,16.36243717,142.77,142.74,0.2]
[1768764626977,19.56099382,142.77,142.74,0.2]
[1768764627178,3.19855665,142.76,142.74,0.2]
[1768764627483,3.08854286,142.76,142.74,0.2]
[1768764629372,10.20319425,142.77,142.74,0.2]
[1768764631672,10.20319425,142.77,142.74,1.13611158]
[1768764634093,3.19855665,142.77,142.73,1.13800598]
[1768764634299,10.20241612,142.78,142.75,1.13800598]
[1768764634605,3.19855665,142.78,142.75,1.13800598]
[1768764634791,10.20241272,142.78,142.75,1.13800598]
[1768764635574,3.19855665,142.77,142.74,8.14430599]
[1768764640808,3.13855666,142.77,142.74,8.14430599]
[1768764648127,3.13855666,142.77,142.74,1.13861568]
[1768764648418,3.00719106,142.76,142.72,14.51099286]
[1768764648794,3.00719106,142.76,142.72,7.50447781]
[1768764648999,3.00719106,142.76,142.72,6.3]
[1768764649419,18.34719106,142.76,142.72,6.3]
[1768764649607,3.00719106,142.75,142.72,6.3]
[1768764650519,3.00719106,142.75,142.71,23.75185069]
[1768764653923,3.00719106,142.75,142.71,23.75368835]
[1768764656101,3.07608065,142.74,142.71,22.54705403]
[1768764656494,3.07608065,142.74,142.71,15.54]
[1768764656899,3.07608065,142.73,142.71,15.54]
[1768764657107,3.02003703,142.73,142.71,15.54]
[1768764657421,3.02003703,142.73,142.71,0.2]
[1768764658310,7.00639287,142.73,142.71,0.2]
[1768764659025,3.07608065,142.72,142.71,0.2]
[1768764660203,3.07608065,142.71,142.69,0.2]
[1768764660822,3.07608065,142.71,142.69,1e-08]
[1768764661003,3.07608065,142.71,142.68,17.86357563]
[1768764661204,3.07608065,142.69,142.68,14.57129038]
[1768764661711,10.78329976,142.7,142.68,14.57129038]
[1768764661910,10.08304643,142.72,142.69,3.05163877]
[1768764662132,3.07608065,142.71,142.68,17.62292915]
[1768764662306,3.07608065,142.71,142.69,3.05163877]
[1768764662524,3.01608066,142.71,142.69,3.05163877]
[1768764663320,3.01608066,142.71,142.68,14.57129038]
[1768764663321,3.01608066,142.71,142.68,17.62292915]
[1768764663619,3.01608066,142.71,142.68,24.63153784]
[1768764665018,3.07608065,142.75,142.69,3.05163877]
[1768764665214,17.62292915,142.74,142.69,3.05163877]
[1768764665414,3.07608065,142.73,142.69,3.05163877]
[1768764666524,3.07608065,142.73,142.69,10.05966366]
[1768764666830,3.07608065,142.74,142.7,3.05163877]
[1768764668926,10.08184545,142.74,142.71,3.05163877]
[1768764669135,3.07608065,142.74,142.71,3.05163877]
[1768764672140,3.07608065,142.74,142.71,10.0588483]
[1768764678941,10.08183776,142.74,142.71,3.05163877]
[1768764679128,3.07608065,142.74,142.71,3.05163877]
[1768764681844,3.07608065,142.74,142.7,3.05163877]
[1768764683151,7.0054618,142.75,142.7,3.05163877]
[1768764683152,3.07335982,142.75,142.7,3.05163877]
[1768764683442,17.51002557,142.78,142.71,3.15059081]
[1768764683443,28.03222618,142.78,142.71,3.15059081]
[1768764683644,24.10164286,142.78,142.72,3.15059081]
[1768764683946,3.07335982,142.77,142.74,3.15059081]
[1768764684120,3.07335982,142.77,142.73,10.15682635]
[1768764685426,3.07335982,142.76,142.72,7.00672645]
[1768764685932,3.07335982,142.76,142.72,10.15731726]
[1768764696248,3.07335982,142.76,142.73,3.15059081]
[1768764696441,3.07335982,142.76,142.73,10.15639002]
[1768764697854,3.01074468,142.78,142.74,3.07364416]
[1768764698836,3.01074468,142.78,142.75,7.00525394]
[1768764699045,3.01074468,142.78,142.75,10.0788981]
[1768764700749,3.01074468,142.79,142.76,3.07364416]
[1768764700942,3.01074468,142.8,142.77,3.07364416]
[1768764701248,3.01074468,142.8,142.77,3.04364416]
[1768764701958,10.01265834,142.82,142.77,3.04364416]
[1768764702453,3.01074468,142.81,142.77,3.04364416]
[1768764703238,3.01074468,142.81,142.77,10.04771081]
[1768764704146,3.01074468,142.81,142.78,3.07364416]
[1768764704340,3.01074468,142.81,142.78,3.04364416]
[1768764706162,3.01074468,142.81,142.76,7.00476323]
[1768764706342,3.01074468,142.81,142.77,3.07364416]
[1768764707958,7.0023489,142.81,142.77,3.07364416]
[1768764708258,3.01074468,142.8,142.77,3.07364416]
[1768764710054,3.01074468,142.8,142.77,10.07779008]
[1768764711862,7.0023489,142.81,142.78,3.07364416]
[1768764712043,3.01074468,142.8,142.76,7.00476323]
[1768764712461,3.01074468,142.8,142.76,10.04568086]
[1768764714561,2.99552589,142.79,142.75,31.6861253]
[1768764715254,2.99552589,142.79,142.75,16.3461253]
[1768764715839,2.99552589,142.78,142.75,10.0461253]
[1768764719655,2.99552589,142.78,142.75,3.04091763]
[1768764719854,2.99552589,142.78,142.74,7.00559537]
[1768764719855,2.99552589,142.77,142.74,7.00559537]
[1768764720462,2.99552589,142.77,142.74,10.046513]
[1768764721261,2.99552589,142.78,142.75,3.04091763]
[1768764722783,2.99552589,142.78,142.74,10.046513]
[1768764732074,2.99552589,142.77,142.73,3.04091763]
[1768764733579,2.99552589,142.77,142.74,3.04091763]
[1768764735379,2.99552589,142.77,142.74,10.04659848]
[1768764737874,2.99552589,142.75,142.72,3.04091763]
[1768764739782,10.0008702,142.75,142.72,3.04091763]
[1768764739983,9.94087021,142.75,142.72,3.04091763]
[1768764743180,3.03144295,142.74,142.72,3.04091763]
[1768764743370,2.97144296,142.74,142.72,3.04091763]
[1768764745696,3.03144295,142.76,142.72,10.04728981]
[1768764748510,3.03144295,142.76,142.73,3.07624261]
[1768764749704,3.03144295,142.75,142.71,7.007045]
[1768764749907,3.03144295,142.75,142.69,24.52820452]
[1768764750089,3.03144295,142.75,142.7,3.07624261]
[1768764750289,3.03144295,142.74,142.7,3.07624261]
[1768764751317,3.03144295,142.74,142.71,7.00721743]
[1768764756221,3.03144295,142.74,142.71,3.07624261]
[1768764757218,2.81639919,142.75,142.72,2.9681659]
[1768764758215,2.81639919,142.75,142.72,7.00669584]
[1768764758413,2.81639919,142.75,142.72,9.97486174]
[1768764760122,2.81639919,142.74,142.7,2.9681659]
[1768764761537,2.7563992,142.74,142.71,2.9681659]
[1768764764625,2.7563992,142.74,142.71,9.9749235]
[1768764767016,2.81639919,142.77,142.72,2.9681659]
[1768764768202,7.00476323,142.76,142.73,2.9681659]
[1768764768405,2.81639919,142.75,142.72,9.97485679]
[1768764773133,2.97938894,142.74,142.7,9.83847588]
[1768764773320,2.91938895,142.74,142.7,7.00741991]
[1768764774633,7.00586624,142.74,142.7,7.00741991]
[1768764775325,2.97938894,142.73,142.7,7.00741991]
[1768764777336,2.97938894,142.73,142.69,25.179079]
[1768764777522,2.97938894,142.73,142.69,31.479079]
[1768764777924,2.97938894,142.73,142.7,2.83105597]
[1768764778451,9.98571984,142.73,142.7,2.83105597]
[1768764778935,2.97938894,142.71,142.69,15.34]
[1768764779128,7.00714409,142.72,142.69,18.17105597]
[1768764779315,7.00714409,142.72,142.69,2.83105597]
[1768764780511,17.51520911,142.74,142.69,2.83105597]
[1768764780715,17.51520911,142.74,142.68,24.41083389]
[1768764781230,2.97938894,142.73,142.7,2.83105597]
[1768764781436,2.97938894,142.74,142.7,2.83105597]
[1768764781737,9.98464288,142.75,142.7,2.83105597]
[1768764782523,2.97938894,142.76,142.71,2.83105597]
[1768764783025,2.91938895,142.76,142.72,2.83105597]
[1768764785042,7.00525394,142.75,142.72,2.83105597]
[1768764785741,2.97938894,142.74,142.68,14.57129038]
[1768764787237,2.97938894,142.72,142.68,14.57129038]
[1768764787440,2.97938894,142.72,142.69,15.34]
[1768764787737,2.97938894,142.72,142.68,17.40234635]
[1768764789140,7.00721743,142.71,142.68,17.40234635]
[1768764789347,9.98660637,142.71,142.68,17.40234635]
[1768764789645,7.00721743,142.71,142.69,2.83105597]
[1768764791340,2.97938894,142.74,142.69,2.83105597]
[1768764791545,2.97938894,142.74,142.7,2.83105597]
[1768764792545,2.97938894,142.73,142.7,2.83105597]
[1768764794537,2.97938894,142.72,142.69,18.17105597]
[1768764798451,9.98600764,142.73,142.69,18.17105597]
[1768764798755,9.98600764,142.73,142.7,2.83105597]
[1768764800250,9.98600764,142.73,142.7,18.17105597]
[1768764800662,7.0066187,142.73,142.71,2.83105597]
[1768764801165,9.98600764,142.73,142.7,18.17105597]
[1768764803362,2.93462489,142.75,142.71,2.8994852]
[1768764804350,9.9403696,142.74,142.71,2.8994852]
[1768764806365,2.93462489,142.73,142.7,18.2394852]
[1768764807457,2.93462489,142.73,142.71,15.34]
[1768764807458,2.93462489,142.72,142.71,15.34]
[1768764807763,9.94086287,142.73,142.71,15.34]
[1768764810474,2.93462489,142.73,142.71,15.34]
[1768764811269,2.93462489,142.71,142.63,0.2]
[1768764811768,2.93462489,142.7,142.62,15.34]
[1768764812353,2.93462489,142.68,142.62,15.34]
[1768764814078,2.93462489,142.68,142.63,2.54670417]
[1768764814584,9.94380691,142.67,142.63,2.54670417]
[1768764815861,9.94380691,142.67,142.64,15.34]
[1768764819588,2.83688521,142.66,142.64,15.34]
[1768764819959,2.83688521,142.66,142.63,2.54670417]
[1768764820159,2.83688521,142.66,142.64,15.36]
[1768764821064,2.83688521,142.66,142.63,2.54670417]
[1768764821259,2.83688521,142.66,142.64,15.36]
[1768764821460,2.83688521,142.66,142.65,15.36]
[1768764823494,2.83688521,142.64,142.54,0.2]
[1768764823662,24.53557657,142.65,142.54,8.41549263]
[1768764823663,2.83688521,142.61,142.54,8.41549263]
[1768764823863,2.83688521,142.61,142.54,7.21549263]
[1768764824281,2.77688522,142.61,142.54,7.56256634]
[1768764824880,7.01262272,142.6,142.54,7.56256634]
[1768764825887,24.54250323,142.61,142.54,7.56256634]
[1768764826065,24.54250323,142.61,142.55,15.36]
[1768764826260,2.83688521,142.6,142.54,0.54707371]
[1768764826466,2.83688521,142.6,142.56,15.36]
[1768764826871,2.83688521,142.6,142.54,15.90707371]
[1768764827183,2.83688521,142.6,142.55,0.31494161]
[1768764827380,9.84901619,142.61,142.55,0.31494161]
[1768764828088,9.84901619,142.61,142.57,0.304476]
[1768764829471,9.84901619,142.61,142.58,15.36]
[1768764829679,9.84901619,142.61,142.58,9.49419963]
[1768764829986,9.84901619,142.61,142.58,1.58557421]
[1768764830184,9.84901619,142.61,142.57,0.304476]
[1768764831588,2.83688521,142.6,142.57,0.304476]
[1768764831993,2.83688521,142.62,142.57,0.304476]
[1768764833982,7.01213098,142.61,142.56,23.57459034]
[1768764834189,9.73141706,142.61,142.56,23.57459034]
[1768764836478,9.73141706,142.61,142.56,8.21459034]
[1768764836677,9.73141706,142.61,142.56,23.57459034]
[1768764838276,9.73141706,142.61,142.56,14.73106626]
[1768764838490,9.73141706,142.61,142.56,12.90213252]
[1768764838675,9.73141706,142.61,142.56,9.90294509]
[1768764838979,2.71928608,142.62,142.56,9.90294509]
[1768764839489,2.71928608,142.62,142.56,6.90364192]
[1768764839696,2.71928608,142.62,142.54,18.03893643]
[1768764840582,9.73141706,142.61,142.54,18.03893643]
[1768764841497,9.73141706,142.61,142.55,7.01508242]
[1768764842197,2.71928608,142.6,142.55,7.01508242]
[1768764844785,2.71928608,142.6,142.55,7.31508242]
[1768764852914,2.71928608,142.59,142.55,7.31508242]
[1768764853084,2.71928608,142.59,142.54,7.51548105]
[1768764855302,9.73273845,142.59,142.54,7.51548105]
[1768764855600,2.71928608,142.58,142.54,7.51548105]
[1768764875124,2.48286487,142.59,142.54,25.05441748]
[1768764878151,2.53227169,142.62,142.54,24.75441748]
[1768764878359,2.53227169,142.62,142.54,25.05441748]
[1768764879655,2.53227169,142.62,142.54,60.13229035]
[1768764889981,2.53227169,142.64,142.54,60.13229035]
[1768764890779,2.53227169,142.64,142.54,67.88998167]
[1768764890969,17.89227169,142.66,142.55,7.05613387]
[1768764891155,17.89227169,142.66,142.56,15.36]
[1768764891874,15.36,142.66,142.56,15.36]
[1768764892087,2.53227169,142.65,142.56,15.36]
[1768764892655,17.67379567,142.66,142.56,21.00408856]
[1768764893061,17.67379567,142.66,142.57,59.61983585]
[1768764894367,2.31379567,142.65,142.57,59.61983585]
[1768764897474,2.31379567,142.65,142.57,74.97983585]
[1768764897674,2.31379567,142.65,142.57,75.27983585]
[1768764899390,2.31379567,142.65,142.57,76.47983585]
[1768764906191,2.31379567,142.65,142.57,61.11983585]
[1768764907693,2.31379567,142.64,142.57,61.11983585]
[1768764922606,15.36,142.66,142.58,1.38516955]
[1768764922798,15.36,142.66,142.58,1.68516955]
[1768764924597,2.22612454,142.65,142.6,1.37528121]
[1768764926906,2.22612454,142.65,142.61,24.54245844]
[1768764927110,2.22612454,142.65,142.61,24.84245844]
[1768764929517,2.22612454,142.65,142.61,26.19506884]
[1768764929811,15.36,142.66,142.63,26.9360669]
[1768764930015,15.36,142.66,142.63,29.0497569]
[1768764931796,2.22612454,142.66,142.63,29.0497569]
[1768764931998,2.22612454,142.66,142.63,26.9360669]
[1768764932294,2.22612454,142.66,142.63,29.0497569]
[1768764932603,1e-08,142.66,142.64,4.51073987]
[1768764932912,1e-08,142.66,142.64,4.81073987]
[1768764934296,1e-08,142.66,142.65,7.01016473]
[1768764934612,1e-08,142.66,142.65,6.98016473]
[1768764937114,1e-08,142.66,142.65,6.95016473]
[1768764940429,1e-08,142.66,142.63,17.52786931]
[1768764941423,1e-08,142.66,142.63,24.53901703]
[1768764944507,1e-08,142.66,142.63,26.88427475]
[1768764948133,1e-08,142.66,142.63,28.99796475]
[1768764950831,9.12198803,142.69,142.63,26.65270703]
[1768764951148,1.43255937,142.68,142.64,9.35549938]
[1768764951432,1.43255937,142.68,142.65,2.34525772]
[1768764951938,1.43255937,142.68,142.64,11.46918938]
[1768764957641,1.43255937,142.68,142.64,9.35549938]
[1768764964938,1.43255937,142.68,142.64,11.46918938]
[1768764965139,1.43255937,142.68,142.64,9.12393166]
[1768764965338,9.12198803,142.69,142.66,2.17046766]
[1768764965646,9.12198803,142.69,142.66,2.14046766]
[1768764965821,1.39124911,142.68,142.65,7.01001212]
[1768764967447,1.39124911,142.68,142.65,9.18047978]
[1768764996167,16.63476967,142.7,142.66,2.10391023]
[1768764997501,16.63476967,142.7,142.67,7.00918202]
[1768764998077,16.63476967,142.7,142.67,9.07433598]
[1768764999690,16.63476967,142.7,142.66,9.0748273]
[1768765000090,16.63476967,142.7,142.66,7.00967334]
[1768765000294,16.63476967,142.7,142.67,2.06515396]
[1768765001302,16.63476967,142.7,142.67,9.07427066]
[1768765005082,15.36,142.7,142.67,7.0091167]
[1768765005299,15.36,142.7,142.68,2.06515396]
[1768765015308,10.33932589,142.72,142.69,2.1590707]
[1768765015629,23.5855354,142.72,142.69,2.1590707]
[1768765017414,25.69932589,142.72,142.69,2.1590707]
[1768765018118,25.69932589,142.72,142.69,2.12907071]
[1768765019795,1.23944283,142.69,142.61,59.6013757]
[1768765020023,3.35323332,142.69,142.64,2.11379049]
[1768765020206,2.11379049,142.69,142.65,2.1590707]
[1768765020706,3.35099242,142.7,142.65,2.1590707]
[1768765021107,3.35099242,142.7,142.66,7.00967334]
[1768765021308,3.35099242,142.7,142.67,2.1590707]
[1768765021910,1.23279705,142.69,142.66,9.16874404]
[1768765023738,1.23063248,142.7,142.67,2.1590707]
[1768765024022,3.34442297,142.7,142.67,2.1590707]
[1768765025527,3.34442297,142.7,142.67,9.1682445]
[1768765026318,1.23063248,142.7,142.67,9.1682445]
[1768765026520,3.34442297,142.7,142.67,9.1682445]
[1768765028430,1.22002745,142.69,142.66,9.16874404]
[1768765028613,3.33381794,142.7,142.67,2.1590707]
[1768765030441,1.215954,142.69,142.66,9.16874404]
[1768765031646,1.215954,142.69,142.67,7.00915336]
[1768765036149,3.31807395,142.7,142.67,2.1590707]
[1768765039658,3.31807395,142.7,142.67,9.16824417]
[1768765044853,3.3176731,142.7,142.67,9.16824417]
[1768765045784,3.3176731,142.7,142.67,2.1590707]
[1768765046582,2.11338964,142.69,142.67,2.1590707]
[1768765048580,2.31338964,142.73,142.64,2.05182479]
[1768765048581,17.47338964,142.68,142.64,2.05182479]
[1768765048766,3.2949984,142.67,142.64,2.05182479]
[1768765049573,3.2949984,142.67,142.64,9.06244412]
[1768765051768,15.36,142.68,142.65,2.05182479]
[1768765052066,17.47338964,142.68,142.65,2.05182479]
[1768765056580,24.48219412,142.68,142.65,2.05182479]
[1768765065873,25.6362263,142.68,142.65,2.05182479]
[1768765073081,25.6362263,142.68,142.63,7.01114772]
[1768765073082,1.14411409,142.67,142.63,7.01114772]
[1768765073289,1.14411409,142.66,142.63,7.01114772]
[1768765073605,1.14411409,142.66,142.63,9.17927874]
[1768765089614,10.24953848,142.67,142.64,2.16813102]
[1768765094419,7.00932159,142.67,142.64,2.16813102]
[1768765095316,15.36,142.68,142.66,2.16813102]